[Event "Titled Tuesday Blitz June 13 Late 2023"]
[White "Kabilov, Amin"]
[Black "Rosen, Eric"]
[WhiteFideId "14700859"]
[BlackFideId "2032562"]
[WhiteElo "2110"]
[BlackElo "2331"]
[Result "1-0"]
[Round "2"]
[TimeControl "180+2"]
[Date "2023.06.13"]
[WhiteClock "0:00:20"]
[BlackClock "0:00:00"]
[Board "74"]

1. d4 {[%clk 0:02:54]}  d5 {[%clk 0:03:00]} 2. c4 {[%clk 0:02:52]}  e6 {[%clk 0:03:00]} 3. Nc3 {[%clk 0:02:47]}  Nf6 {[%clk 0:03:00]} 4. Bg5 {[%clk 0:02:48]}  c6 {[%clk 0:02:56]} 5. e3 {[%clk 0:02:47]}  Nbd7 {[%clk 0:02:57]} 6. Nf3 {[%clk 0:02:47]}  Qa5 {[%clk 0:02:57]} 7. Nd2 {[%clk 0:02:46]}  Bb4 {[%clk 0:02:55]} 8. Qc2 {[%clk 0:02:46]}  e5 {[%clk 0:02:55]} 9. Bxf6 {[%clk 0:02:40]}  Nxf6 {[%clk 0:02:55]} 10. dxe5 {[%clk 0:02:39]}  Ne4 {[%clk 0:02:56]} 11. Ndxe4 {[%clk 0:02:38]}  dxe4 {[%clk 0:02:55]} 12. Rc1 {[%clk 0:02:22]}  Qxa2 {[%clk 0:02:13]} 13. Be2 {[%clk 0:02:11]}  Bf5 {[%clk 0:02:13]} 14. O-O {[%clk 0:02:07]}  Qa5 {[%clk 0:02:13]} 15. Nxe4 {[%clk 0:01:38]}  Qxe5 {[%clk 0:02:13]} 16. Bd3 {[%clk 0:01:37]}  O-O {[%clk 0:01:31]} 17. Nf6+ {[%clk 0:01:08]}  Qxf6 {[%clk 0:01:31]} 18. Bxf5 {[%clk 0:01:08]}  g6 {[%clk 0:01:32]} 19. Be4 {[%clk 0:01:08]}  Bd6 {[%clk 0:01:33]} 20. g3 {[%clk 0:01:07]}  Rfe8 {[%clk 0:01:25]} 21. Bg2 {[%clk 0:01:03]}  h5 {[%clk 0:01:25]} 22. h4 {[%clk 0:01:00]}  Rad8 {[%clk 0:01:10]} 23. Rfd1 {[%clk 0:00:56]}  Be5 {[%clk 0:01:10]} 24. b4 {[%clk 0:00:50]}  Qe7 {[%clk 0:01:08]} 25. b5 {[%clk 0:00:43]}  Qc7 {[%clk 0:00:59]} 26. bxc6 {[%clk 0:00:41]}  bxc6 {[%clk 0:00:59]} 27. Rxd8 {[%clk 0:00:38]}  Rxd8 {[%clk 0:00:58]} 28. Qe4 {[%clk 0:00:38]}  Rc8 {[%clk 0:00:40]} 29. c5 {[%clk 0:00:35]}  a5 {[%clk 0:00:38]} 30. Rd1 {[%clk 0:00:25]}  Bc3 {[%clk 0:00:30]} 31. Bh3 {[%clk 0:00:23]}  f5 {[%clk 0:00:17]} 32. Qc4+ {[%clk 0:00:22]}  Qf7 {[%clk 0:00:13]} 33. Qxc3 {[%clk 0:00:22]}  Ra8 {[%clk 0:00:14]} 34. Bg2 {[%clk 0:00:20]}  a4 {[%clk 0:00:09]} 35. Bxc6 {[%clk 0:00:20]}  Rc8 {[%clk 0:00:07]} 36. Bd5 {[%clk 0:00:20]}  a3 {[%clk 0:00:06]} 37. Bxf7+ {[%clk 0:00:20]}  Kxf7 {[%clk 0:00:06]} 38. Qxa3 {[%clk 0:00:20]}  f4 {[%clk 0:00:05]} 39. Qb3+ {[%clk 0:00:21]}  Kg7 {[%clk 0:00:05]} 40. exf4 {[%clk 0:00:21]}  Rc7 {[%clk 0:00:03]} 41. Rd6 {[%clk 0:00:21]}  g5 {[%clk 0:00:03]} 42. Qc3+ {[%clk 0:00:21]}  Kg8 {[%clk 0:00:01]} 43. fxg5 {[%clk 0:00:22]}  Rf7 {[%clk 0:00:01]} 44. Qc4 {[%clk 0:00:22]}  Kg7 {[%clk 0:00:02]} 45. Rf6 {[%clk 0:00:22]}  Kh8 {[%clk 0:00:01]} 46. Rxf7 {[%clk 0:00:21]}  Kg8 {[%clk 0:00:00]} 47. Rc7+ {[%clk 0:00:20]} 1-0


[Site "https://www.chess.com"]

[Event "Titled Tuesday Blitz June 13 Late 2023"]
[White "Wieczorek, Oskar"]
[Black "Avalos Parra, Joao"]
[WhiteFideId "1133950"]
[BlackFideId "3402541"]
[WhiteElo "2418"]
[BlackElo "2173"]
[Result "1-0"]
[Round "2"]
[TimeControl "180+2"]
[Date "2023.06.13"]
[WhiteClock "0:00:50"]
[BlackClock "0:00:10"]
[Board "80"]

1. b3 {[%clk 0:03:00]}  e5 {[%clk 0:02:54]} 2. Bb2 {[%clk 0:03:00]}  Nc6 {[%clk 0:02:55]} 3. e3 {[%clk 0:03:01]}  d5 {[%clk 0:02:51]} 4. Bb5 {[%clk 0:03:01]}  Bd6 {[%clk 0:02:50]} 5. f4 {[%clk 0:03:01]}  f6 {[%clk 0:02:31]} 6. Qh5+ {[%clk 0:02:59]}  g6 {[%clk 0:02:28]} 7. Qh4 {[%clk 0:03:00]}  exf4 {[%clk 0:02:25]} 8. exf4 {[%clk 0:02:43]}  Bd7 {[%clk 0:02:25]} 9. Nc3 {[%clk 0:02:38]}  Qe7+ {[%clk 0:02:25]} 10. Nge2 {[%clk 0:02:37]}  d4 {[%clk 0:02:19]} 11. Nd5 {[%clk 0:02:31]}  Qe6 {[%clk 0:02:12]} 12. Bc4 {[%clk 0:02:31]}  Qf5 {[%clk 0:02:11]} 13. O-O-O {[%clk 0:02:18]}  O-O-O {[%clk 0:02:04]} 14. Ng3 {[%clk 0:02:08]}  Qg4 {[%clk 0:01:58]} 15. Qxg4 {[%clk 0:02:08]}  Bxg4 {[%clk 0:01:58]} 16. Rde1 {[%clk 0:02:09]}  Nge7 {[%clk 0:01:53]} 17. Nxf6 {[%clk 0:02:06]}  Bf5 {[%clk 0:01:41]} 18. Nxf5 {[%clk 0:02:06]}  Nxf5 {[%clk 0:01:41]} 19. g3 {[%clk 0:02:02]}  a6 {[%clk 0:01:34]} 20. a3 {[%clk 0:01:45]}  Kb8 {[%clk 0:01:31]} 21. Ne4 {[%clk 0:01:42]}  Bf8 {[%clk 0:01:27]} 22. Ng5 {[%clk 0:01:42]}  Bg7 {[%clk 0:01:20]} 23. Nf7 {[%clk 0:01:41]}  Rhf8 {[%clk 0:01:21]} 24. Nxd8 {[%clk 0:01:41]}  Rxd8 {[%clk 0:01:22]} 25. Bd3 {[%clk 0:01:40]}  Nd6 {[%clk 0:01:21]} 26. Rhf1 {[%clk 0:01:37]}  b5 {[%clk 0:01:12]} 27. g4 {[%clk 0:01:38]}  Bf6 {[%clk 0:01:11]} 28. g5 {[%clk 0:01:35]}  Bg7 {[%clk 0:01:10]} 29. f5 {[%clk 0:01:35]}  gxf5 {[%clk 0:01:09]} 30. Bxf5 {[%clk 0:01:35]}  Kb7 {[%clk 0:01:04]} 31. h4 {[%clk 0:01:29]}  Rf8 {[%clk 0:00:54]} 32. Bxh7 {[%clk 0:01:29]}  Rh8 {[%clk 0:00:53]} 33. g6 {[%clk 0:01:28]}  a5 {[%clk 0:00:48]} 34. h5 {[%clk 0:01:27]}  a4 {[%clk 0:00:48]} 35. bxa4 {[%clk 0:01:21]}  bxa4 {[%clk 0:00:49]} 36. Re6 {[%clk 0:01:18]}  Nc4 {[%clk 0:00:45]} 37. Rf7 {[%clk 0:00:54]}  Bh6 {[%clk 0:00:44]} 38. g7 {[%clk 0:00:54]}  Bxd2+ {[%clk 0:00:40]} 39. Kd1 {[%clk 0:00:54]}  Rxh7 {[%clk 0:00:27]} 40. g8=Q {[%clk 0:00:53]}  Rxh5 {[%clk 0:00:27]} 41. Qg2 {[%clk 0:00:52]}  Rg5 {[%clk 0:00:10]} 42. Qxc6+ {[%clk 0:00:50]} 1-0


[Site "https://www.chess.com"]

[Event "Titled Tuesday Blitz June 13 Late 2023"]
[White "kiwibobo"]
[Black "benny_aizenberg"]
[WhiteElo "2295"]
[BlackElo "2693"]
[Result "1-0"]
[Round "2"]
[TimeControl "180+2"]
[Date "2023.06.13"]
[WhiteClock "0:01:04"]
[BlackClock "0:00:15"]
[Board "82"]

1. e4 {[%clk 0:03:00]}  c5 {[%clk 0:02:50]} 2. Nf3 {[%clk 0:03:00]}  d6 {[%clk 0:02:41]} 3. d4 {[%clk 0:03:00]}  cxd4 {[%clk 0:02:40]} 4. Nxd4 {[%clk 0:03:01]}  Nf6 {[%clk 0:02:41]} 5. Nc3 {[%clk 0:03:02]}  Nc6 {[%clk 0:02:39]} 6. Be2 {[%clk 0:03:02]}  e5 {[%clk 0:02:38]} 7. Nf3 {[%clk 0:03:02]}  Be7 {[%clk 0:02:35]} 8. Bg5 {[%clk 0:03:01]}  O-O {[%clk 0:02:25]} 9. O-O {[%clk 0:02:59]}  Be6 {[%clk 0:02:23]} 10. Bxf6 {[%clk 0:02:58]}  Bxf6 {[%clk 0:02:23]} 11. Nd5 {[%clk 0:02:59]}  Be7 {[%clk 0:02:21]} 12. c3 {[%clk 0:02:57]}  Rc8 {[%clk 0:02:18]} 13. Qd3 {[%clk 0:02:52]}  f5 {[%clk 0:02:15]} 14. Rad1 {[%clk 0:02:34]}  Kh8 {[%clk 0:01:54]} 15. Nxe7 {[%clk 0:02:24]}  fxe4 {[%clk 0:01:36]} 16. Nxc6 {[%clk 0:02:09]}  exd3 {[%clk 0:01:35]} 17. Nxd8 {[%clk 0:02:09]}  dxe2 {[%clk 0:01:34]} 18. Nxe6 {[%clk 0:02:10]}  Rf6 {[%clk 0:01:23]} 19. Rxd6 {[%clk 0:02:00]}  exf1=R+ {[%clk 0:01:19]} 20. Kxf1 {[%clk 0:02:01]}  Re8 {[%clk 0:01:16]} 21. Neg5 {[%clk 0:01:44]}  e4 {[%clk 0:00:51]} 22. Nxe4 {[%clk 0:01:38]}  Rxd6 {[%clk 0:00:36]} 23. Nxd6 {[%clk 0:01:39]}  Re7 {[%clk 0:00:36]} 24. Nd4 {[%clk 0:01:35]}  g6 {[%clk 0:00:35]} 25. g3 {[%clk 0:01:29]}  Kg8 {[%clk 0:00:35]} 26. h4 {[%clk 0:01:26]}  Kf8 {[%clk 0:00:33]} 27. Kg2 {[%clk 0:01:26]}  Rd7 {[%clk 0:00:32]} 28. Nc4 {[%clk 0:01:24]}  Ke7 {[%clk 0:00:30]} 29. Kf3 {[%clk 0:01:23]}  Rc7 {[%clk 0:00:29]} 30. Ne3 {[%clk 0:01:19]}  Rc5 {[%clk 0:00:25]} 31. Ke4 {[%clk 0:01:17]}  Kd6 {[%clk 0:00:23]} 32. a4 {[%clk 0:01:13]}  a6 {[%clk 0:00:21]} 33. g4 {[%clk 0:01:03]}  Re5+ {[%clk 0:00:20]} 34. Kd3 {[%clk 0:01:02]}  Kc5 {[%clk 0:00:19]} 35. b4+ {[%clk 0:01:01]}  Kd6 {[%clk 0:00:18]} 36. Nc4+ {[%clk 0:01:02]}  Kd5 {[%clk 0:00:18]} 37. Nxe5 {[%clk 0:01:02]}  Kxe5 {[%clk 0:00:19]} 38. b5 {[%clk 0:01:01]}  Kf4 {[%clk 0:00:18]} 39. bxa6 {[%clk 0:00:59]}  bxa6 {[%clk 0:00:19]} 40. f3 {[%clk 0:00:59]}  Kg3 {[%clk 0:00:18]} 41. c4 {[%clk 0:00:59]}  Kxh4 {[%clk 0:00:18]} 42. c5 {[%clk 0:01:00]}  Kg3 {[%clk 0:00:19]} 43. c6 {[%clk 0:01:01]}  h5 {[%clk 0:00:19]} 44. gxh5 {[%clk 0:01:01]}  gxh5 {[%clk 0:00:20]} 45. c7 {[%clk 0:01:00]}  h4 {[%clk 0:00:21]} 46. Nf5+ {[%clk 0:01:00]}  Kf2 {[%clk 0:00:17]} 47. Nxh4 {[%clk 0:01:01]}  a5 {[%clk 0:00:17]} 48. c8=Q {[%clk 0:01:01]}  Ke1 {[%clk 0:00:17]} 49. Qe6+ {[%clk 0:01:01]}  Kf2 {[%clk 0:00:17]} 50. Qe2+ {[%clk 0:01:01]}  Kg3 {[%clk 0:00:17]} 51. Qg2+ {[%clk 0:01:00]}  Kf4 {[%clk 0:00:18]} 52. Qg4+ {[%clk 0:01:01]}  Ke5 {[%clk 0:00:18]} 53. Qf5+ {[%clk 0:01:01]}  Kd6 {[%clk 0:00:18]} 54. Kd4 {[%clk 0:01:02]}  Ke7 {[%clk 0:00:17]} 55. Ng6+ {[%clk 0:01:01]}  Ke8 {[%clk 0:00:17]} 56. Qe6+ {[%clk 0:01:01]}  Kd8 {[%clk 0:00:17]} 57. Kd5 {[%clk 0:01:01]}  Kc7 {[%clk 0:00:17]} 58. Qe7+ {[%clk 0:01:02]}  Kb6 {[%clk 0:00:17]} 59. Qd6+ {[%clk 0:01:02]}  Kb7 {[%clk 0:00:17]} 60. Kc5 {[%clk 0:01:03]}  Ka7 {[%clk 0:00:16]} 61. Kc6 {[%clk 0:01:03]}  Ka6 {[%clk 0:00:16]} 62. Qd3+ {[%clk 0:01:04]}  Ka7 {[%clk 0:00:17]} 63. Qd4+ {[%clk 0:01:05]}  Ka8 {[%clk 0:00:16]} 64. Qb2 {[%clk 0:01:03]}  Ka7 {[%clk 0:00:15]} 65. Qb7# {[%clk 0:01:04]} 1-0


[Site "https://www.chess.com"]

[Event "Titled Tuesday Blitz June 13 Late 2023"]
[White "Vaglio Munoz, Jaime"]
[Black "Katz, Alexander"]
[WhiteFideId "6500145"]
[BlackFideId "2039796"]
[WhiteElo "2199"]
[BlackElo "2389"]
[Result "1-0"]
[Round "2"]
[TimeControl "180+2"]
[Date "2023.06.13"]
[WhiteClock "0:00:20"]
[BlackClock "0:00:05"]
[Board "83"]

1. Nf3 {[%clk 0:03:00]}  d5 {[%clk 0:02:54]} 2. g3 {[%clk 0:02:59]}  Nf6 {[%clk 0:02:48]} 3. Bg2 {[%clk 0:02:58]}  Bf5 {[%clk 0:02:48]} 4. O-O {[%clk 0:02:57]}  e6 {[%clk 0:02:48]} 5. d3 {[%clk 0:02:58]}  Nbd7 {[%clk 0:02:47]} 6. Nc3 {[%clk 0:02:58]}  Be7 {[%clk 0:02:45]} 7. Nd2 {[%clk 0:02:58]}  O-O {[%clk 0:02:34]} 8. e4 {[%clk 0:02:57]}  dxe4 {[%clk 0:02:35]} 9. dxe4 {[%clk 0:02:57]}  Bg6 {[%clk 0:02:35]} 10. Qe2 {[%clk 0:02:54]}  e5 {[%clk 0:02:29]} 11. Nc4 {[%clk 0:02:42]}  c6 {[%clk 0:02:26]} 12. a4 {[%clk 0:02:39]}  Qc7 {[%clk 0:02:25]} 13. Ne3 {[%clk 0:02:33]}  Nc5 {[%clk 0:02:22]} 14. Nf5 {[%clk 0:02:28]}  Rfd8 {[%clk 0:02:19]} 15. Nxe7+ {[%clk 0:01:57]}  Qxe7 {[%clk 0:02:18]} 16. f3 {[%clk 0:01:58]}  Ne6 {[%clk 0:02:17]} 17. Be3 {[%clk 0:01:57]}  Nd4 {[%clk 0:02:16]} 18. Qf2 {[%clk 0:01:58]}  Qb4 {[%clk 0:02:13]} 19. Nd1 {[%clk 0:01:49]}  Qc4 {[%clk 0:01:59]} 20. c3 {[%clk 0:01:33]}  Nb3 {[%clk 0:01:40]} 21. Ra3 {[%clk 0:01:33]}  Nd7 {[%clk 0:01:11]} 22. Re1 {[%clk 0:01:26]}  Qe6 {[%clk 0:00:57]} 23. Bf1 {[%clk 0:01:14]}  f6 {[%clk 0:00:47]} 24. Bxa7 {[%clk 0:00:58]}  c5 {[%clk 0:00:39]} 25. Ne3 {[%clk 0:00:58]}  Na5 {[%clk 0:00:35]} 26. b4 {[%clk 0:00:48]}  cxb4 {[%clk 0:00:32]} 27. cxb4 {[%clk 0:00:49]}  Rxa7 {[%clk 0:00:33]} 28. bxa5 {[%clk 0:00:49]}  Bf7 {[%clk 0:00:33]} 29. Rd1 {[%clk 0:00:44]}  Rxa5 {[%clk 0:00:32]} 30. Bc4 {[%clk 0:00:39]}  Qe7 {[%clk 0:00:28]} 31. Rad3 {[%clk 0:00:39]}  Raa8 {[%clk 0:00:26]} 32. Nf5 {[%clk 0:00:37]}  Qb4 {[%clk 0:00:11]} 33. Bxf7+ {[%clk 0:00:36]}  Kxf7 {[%clk 0:00:12]} 34. Rxd7+ {[%clk 0:00:36]}  Rxd7 {[%clk 0:00:13]} 35. Rxd7+ {[%clk 0:00:37]}  Kf8 {[%clk 0:00:14]} 36. Qa2 {[%clk 0:00:20]}  Qe1+ {[%clk 0:00:05]} 37. Kg2 {[%clk 0:00:20]} 1-0


[Site "https://www.chess.com"]

[Event "Titled Tuesday Blitz June 13 Late 2023"]
[White "campochess"]
[Black "Martins, Bruno Andre Leite"]
[BlackFideId "1942255"]
[WhiteElo "2219"]
[BlackElo "2241"]
[Result "0-1"]
[Round "2"]
[TimeControl "180+2"]
[Date "2023.06.13"]
[WhiteClock "0:00:30"]
[BlackClock "0:00:32"]
[Board "85"]

1. Nf3 {[%clk 0:02:50]}  Nf6 {[%clk 0:02:57]} 2. b3 {[%clk 0:02:50]}  g6 {[%clk 0:02:54]} 3. Bb2 {[%clk 0:02:50]}  Bg7 {[%clk 0:02:54]} 4. e4 {[%clk 0:02:49]}  O-O {[%clk 0:02:53]} 5. e5 {[%clk 0:02:49]}  Nd5 {[%clk 0:02:53]} 6. Nc3 {[%clk 0:02:48]}  Nxc3 {[%clk 0:02:52]} 7. Bxc3 {[%clk 0:02:47]}  d6 {[%clk 0:02:52]} 8. d4 {[%clk 0:02:45]}  dxe5 {[%clk 0:02:38]} 9. dxe5 {[%clk 0:02:44]}  Bg4 {[%clk 0:02:37]} 10. Qxd8 {[%clk 0:02:40]}  Rxd8 {[%clk 0:02:37]} 11. Be2 {[%clk 0:02:40]}  Nc6 {[%clk 0:02:37]} 12. O-O {[%clk 0:02:33]}  Rab8 {[%clk 0:02:22]} 13. Rad1 {[%clk 0:02:28]}  Bf5 {[%clk 0:01:53]} 14. Bd3 {[%clk 0:02:18]}  Bxd3 {[%clk 0:01:49]} 15. Rxd3 {[%clk 0:02:14]}  Rxd3 {[%clk 0:01:49]} 16. cxd3 {[%clk 0:02:14]}  Rd8 {[%clk 0:01:50]} 17. Rd1 {[%clk 0:02:13]}  Rd5 {[%clk 0:01:49]} 18. g3 {[%clk 0:01:39]}  Nxe5 {[%clk 0:01:44]} 19. Bxe5 {[%clk 0:01:38]}  Bxe5 {[%clk 0:01:45]} 20. Re1 {[%clk 0:01:32]}  Bf6 {[%clk 0:01:37]} 21. d4 {[%clk 0:01:30]}  e6 {[%clk 0:01:36]} 22. Re4 {[%clk 0:01:28]}  a5 {[%clk 0:01:22]} 23. g4 {[%clk 0:01:25]}  h6 {[%clk 0:01:20]} 24. h4 {[%clk 0:01:24]}  Kf8 {[%clk 0:01:18]} 25. Kg2 {[%clk 0:01:24]}  Ke7 {[%clk 0:01:17]} 26. Kg3 {[%clk 0:01:23]}  a4 {[%clk 0:01:13]} 27. Kf4 {[%clk 0:01:23]}  axb3 {[%clk 0:01:11]} 28. axb3 {[%clk 0:01:22]}  Rb5 {[%clk 0:01:11]} 29. Re3 {[%clk 0:01:09]}  Rb4 {[%clk 0:01:10]} 30. Ke4 {[%clk 0:01:05]}  c5 {[%clk 0:00:56]} 31. Rd3 {[%clk 0:01:01]}  Bxd4 {[%clk 0:00:53]} 32. Nxd4 {[%clk 0:01:00]}  cxd4 {[%clk 0:00:46]} 33. f4 {[%clk 0:00:54]}  f5+ {[%clk 0:00:44]} 34. gxf5 {[%clk 0:00:49]}  gxf5+ {[%clk 0:00:43]} 35. Ke5 {[%clk 0:00:48]}  Rb5+ {[%clk 0:00:35]} 36. Kxd4 {[%clk 0:00:47]}  Rd5+ {[%clk 0:00:35]} 37. Ke3 {[%clk 0:00:46]}  Rxd3+ {[%clk 0:00:36]} 38. Kxd3 {[%clk 0:00:46]}  Kd6 {[%clk 0:00:36]} 39. Kd4 {[%clk 0:00:30]}  h5 {[%clk 0:00:32]} 0-1


[Site "https://www.chess.com"]

[Event "Titled Tuesday Blitz June 13 Late 2023"]
[White "Sun, Rick"]
[Black "zano2023"]
[WhiteFideId "30909481"]
[WhiteElo "2169"]
[BlackElo "2096"]
[Result "1-0"]
[Round "2"]
[TimeControl "180+2"]
[Date "2023.06.13"]
[WhiteClock "0:00:18"]
[BlackClock "0:00:07"]
[Board "88"]

1. e4 {[%clk 0:03:00]}  e5 {[%clk 0:02:59]} 2. Nf3 {[%clk 0:03:00]}  d6 {[%clk 0:03:00]} 3. d4 {[%clk 0:02:58]}  f5 {[%clk 0:03:01]} 4. dxe5 {[%clk 0:02:49]}  fxe4 {[%clk 0:02:59]} 5. Ng5 {[%clk 0:02:48]}  d5 {[%clk 0:02:59]} 6. Nc3 {[%clk 0:02:44]}  Bb4 {[%clk 0:02:45]} 7. Bd2 {[%clk 0:02:28]}  Ne7 {[%clk 0:02:36]} 8. Ncxe4 {[%clk 0:01:55]}  Bxd2+ {[%clk 0:02:29]} 9. Nxd2 {[%clk 0:01:56]}  O-O {[%clk 0:02:27]} 10. Bd3 {[%clk 0:01:49]}  h6 {[%clk 0:02:26]} 11. Ngf3 {[%clk 0:01:40]}  c5 {[%clk 0:02:23]} 12. c3 {[%clk 0:01:39]}  Nbc6 {[%clk 0:02:23]} 13. O-O {[%clk 0:01:38]}  Bg4 {[%clk 0:02:23]} 14. Re1 {[%clk 0:01:38]}  Qd7 {[%clk 0:02:08]} 15. Qc2 {[%clk 0:01:21]}  Qe6 {[%clk 0:02:06]} 16. a3 {[%clk 0:01:18]}  Rf4 {[%clk 0:01:50]} 17. b4 {[%clk 0:01:08]}  c4 {[%clk 0:01:49]} 18. Be2 {[%clk 0:01:02]}  Raf8 {[%clk 0:01:30]} 19. Nf1 {[%clk 0:00:59]}  Bf5 {[%clk 0:01:18]} 20. Qd2 {[%clk 0:00:58]}  Be4 {[%clk 0:01:14]} 21. Ng3 {[%clk 0:00:55]}  Nxe5 {[%clk 0:01:11]} 22. Nxe5 {[%clk 0:00:29]}  Qxe5 {[%clk 0:00:56]} 23. f3 {[%clk 0:00:29]}  Bg6 {[%clk 0:00:39]} 24. Bxc4 {[%clk 0:00:27]}  Qd6 {[%clk 0:00:36]} 25. Bb3 {[%clk 0:00:27]}  Kh7 {[%clk 0:00:32]} 26. Rad1 {[%clk 0:00:24]}  h5 {[%clk 0:00:28]} 27. Bxd5 {[%clk 0:00:20]}  Nxd5 {[%clk 0:00:27]} 28. Qxd5 {[%clk 0:00:21]}  Qxd5 {[%clk 0:00:21]} 29. Rxd5 {[%clk 0:00:22]}  h4 {[%clk 0:00:21]} 30. Ne4 {[%clk 0:00:21]}  Bxe4 {[%clk 0:00:20]} 31. Rxe4 {[%clk 0:00:22]}  Rxe4 {[%clk 0:00:20]} 32. fxe4 {[%clk 0:00:23]}  Re8 {[%clk 0:00:20]} 33. Rd4 {[%clk 0:00:22]}  Re5 {[%clk 0:00:20]} 34. Kf2 {[%clk 0:00:22]}  g5 {[%clk 0:00:19]} 35. Ke3 {[%clk 0:00:22]}  Kg6 {[%clk 0:00:18]} 36. c4 {[%clk 0:00:20]}  b5 {[%clk 0:00:18]} 37. Rd5 {[%clk 0:00:19]}  Re6 {[%clk 0:00:15]} 38. c5 {[%clk 0:00:17]}  Ra6 {[%clk 0:00:13]} 39. Rd6+ {[%clk 0:00:17]}  Rxd6 {[%clk 0:00:12]} 40. cxd6 {[%clk 0:00:18]}  Kf6 {[%clk 0:00:12]} 41. e5+ {[%clk 0:00:18]}  Ke6 {[%clk 0:00:07]} 42. Kf3 {[%clk 0:00:18]} 1-0


[Site "https://www.chess.com"]

[Event "Titled Tuesday Blitz June 13 Late 2023"]
[White "Zochowski, Kacper"]
[Black "Petersson, Kjell"]
[WhiteFideId "1125494"]
[BlackFideId "1705148"]
[WhiteElo "2235"]
[BlackElo "2005"]
[Result "1-0"]
[Round "2"]
[TimeControl "180+2"]
[Date "2023.06.13"]
[WhiteClock "0:00:30"]
[BlackClock "0:00:04"]
[Board "90"]

1. Nf3 {[%clk 0:02:56]}  f5 {[%clk 0:02:59]} 2. d3 {[%clk 0:02:56]}  Nc6 {[%clk 0:02:56]} 3. e4 {[%clk 0:02:55]}  e5 {[%clk 0:02:56]} 4. Nc3 {[%clk 0:02:48]}  Bb4 {[%clk 0:02:55]} 5. d4 {[%clk 0:02:20]}  exd4 {[%clk 0:02:39]} 6. Nxd4 {[%clk 0:02:19]}  fxe4 {[%clk 0:02:22]} 7. Nxc6 {[%clk 0:02:00]}  dxc6 {[%clk 0:02:08]} 8. Qh5+ {[%clk 0:01:58]}  Kf8 {[%clk 0:02:02]} 9. Bc4 {[%clk 0:01:54]}  Qe7 {[%clk 0:01:44]} 10. O-O {[%clk 0:01:48]}  Nf6 {[%clk 0:01:44]} 11. Qh4 {[%clk 0:01:41]}  Bxc3 {[%clk 0:01:42]} 12. bxc3 {[%clk 0:01:39]}  Be6 {[%clk 0:01:39]} 13. Bb3 {[%clk 0:01:33]}  h6 {[%clk 0:01:21]} 14. Re1 {[%clk 0:01:24]}  Bd5 {[%clk 0:01:14]} 15. c4 {[%clk 0:01:18]}  Be6 {[%clk 0:01:07]} 16. Bb2 {[%clk 0:01:14]}  Kf7 {[%clk 0:00:59]} 17. f3 {[%clk 0:00:44]}  Rhe8 {[%clk 0:00:43]} 18. fxe4 {[%clk 0:00:44]}  Kg8 {[%clk 0:00:38]} 19. e5 {[%clk 0:00:44]}  Nd7 {[%clk 0:00:35]} 20. Qf2 {[%clk 0:00:45]}  Rf8 {[%clk 0:00:34]} 21. Qe3 {[%clk 0:00:44]}  Qc5 {[%clk 0:00:27]} 22. Bd4 {[%clk 0:00:44]}  Qe7 {[%clk 0:00:26]} 23. c5 {[%clk 0:00:44]}  b6 {[%clk 0:00:23]} 24. cxb6 {[%clk 0:00:44]}  cxb6 {[%clk 0:00:24]} 25. Rad1 {[%clk 0:00:44]}  c5 {[%clk 0:00:21]} 26. Bb2 {[%clk 0:00:43]}  Bxb3 {[%clk 0:00:20]} 27. axb3 {[%clk 0:00:43]}  Rad8 {[%clk 0:00:19]} 28. e6 {[%clk 0:00:44]}  Nf6 {[%clk 0:00:19]} 29. Qe5 {[%clk 0:00:45]}  Rxd1 {[%clk 0:00:19]} 30. Rxd1 {[%clk 0:00:45]}  Kh8 {[%clk 0:00:16]} 31. h3 {[%clk 0:00:45]}  Kg8 {[%clk 0:00:16]} 32. Kh1 {[%clk 0:00:40]}  Re8 {[%clk 0:00:16]} 33. Rd6 {[%clk 0:00:37]}  Kf8 {[%clk 0:00:13]} 34. Rc6 {[%clk 0:00:37]}  Kg8 {[%clk 0:00:10]} 35. Bc1 {[%clk 0:00:33]}  Kf8 {[%clk 0:00:09]} 36. Be3 {[%clk 0:00:32]}  Kg8 {[%clk 0:00:08]} 37. Bf2 {[%clk 0:00:32]}  Qb7 {[%clk 0:00:07]} 38. Rc7 {[%clk 0:00:32]}  Qb8 {[%clk 0:00:05]} 39. Qg3 {[%clk 0:00:31]}  Qd8 {[%clk 0:00:04]} 40. Qxg7# {[%clk 0:00:30]} 1-0


[Site "https://www.chess.com"]

[Event "Titled Tuesday Blitz June 13 Late 2023"]
[White "Janaszak, Dawid"]
[Black "Moussard, Jules"]
[WhiteFideId "1119206"]
[BlackFideId "642908"]
[WhiteElo "2220"]
[BlackElo "2610"]
[Result "1-0"]
[Round "2"]
[TimeControl "180+2"]
[Date "2023.06.13"]
[WhiteClock "0:00:52"]
[BlackClock "0:01:44"]
[Board "92"]

1. e4 {[%clk 0:03:00]}  c6 {[%clk 0:02:52]} 2. d4 {[%clk 0:03:00]}  d5 {[%clk 0:02:43]} 3. exd5 {[%clk 0:03:01]}  cxd5 {[%clk 0:02:42]} 4. Bd3 {[%clk 0:03:01]}  Nc6 {[%clk 0:02:42]} 5. c3 {[%clk 0:03:01]}  Nf6 {[%clk 0:02:43]} 6. Bf4 {[%clk 0:03:01]}  g6 {[%clk 0:02:43]} 7. Nf3 {[%clk 0:03:01]}  Bf5 {[%clk 0:02:44]} 8. Ne5 {[%clk 0:03:01]}  e6 {[%clk 0:02:40]} 9. O-O {[%clk 0:02:59]}  Bd6 {[%clk 0:02:39]} 10. Re1 {[%clk 0:02:54]}  Bxd3 {[%clk 0:02:34]} 11. Nxd3 {[%clk 0:02:53]}  Bxf4 {[%clk 0:02:32]} 12. Nxf4 {[%clk 0:02:52]}  Qd6 {[%clk 0:02:33]} 13. Qf3 {[%clk 0:02:51]}  Ne4 {[%clk 0:02:32]} 14. Nd3 {[%clk 0:02:40]}  O-O {[%clk 0:02:29]} 15. Qe3 {[%clk 0:02:39]}  Rae8 {[%clk 0:02:25]} 16. Nd2 {[%clk 0:02:39]}  Nxd2 {[%clk 0:02:22]} 17. Qxd2 {[%clk 0:02:40]}  f6 {[%clk 0:02:21]} 18. Re3 {[%clk 0:02:34]}  Re7 {[%clk 0:02:21]} 19. Rae1 {[%clk 0:02:33]}  Rfe8 {[%clk 0:02:21]} 20. f4 {[%clk 0:02:33]}  b6 {[%clk 0:02:21]} 21. g3 {[%clk 0:02:33]}  Kg7 {[%clk 0:02:21]} 22. Qe2 {[%clk 0:02:32]}  h5 {[%clk 0:02:21]} 23. Kg2 {[%clk 0:02:30]}  Na5 {[%clk 0:02:21]} 24. Qf2 {[%clk 0:02:19]}  Nb7 {[%clk 0:02:20]} 25. h3 {[%clk 0:02:17]}  Nd8 {[%clk 0:02:20]} 26. g4 {[%clk 0:02:16]}  hxg4 {[%clk 0:02:21]} 27. hxg4 {[%clk 0:02:17]}  Rh8 {[%clk 0:02:22]} 28. Qg3 {[%clk 0:02:10]}  Nf7 {[%clk 0:02:21]} 29. Rh1 {[%clk 0:02:02]}  Ree8 {[%clk 0:02:20]} 30. Rxh8 {[%clk 0:01:57]}  Rxh8 {[%clk 0:02:21]} 31. Qe1 {[%clk 0:01:56]}  Nd8 {[%clk 0:02:13]} 32. Qg3 {[%clk 0:01:49]}  Qd7 {[%clk 0:02:13]} 33. g5 {[%clk 0:01:44]}  Qf7 {[%clk 0:02:11]} 34. f5 {[%clk 0:01:25]}  Rh5 {[%clk 0:02:00]} 35. fxg6 {[%clk 0:01:15]}  Qxg6 {[%clk 0:01:50]} 36. gxf6+ {[%clk 0:01:07]}  Kxf6 {[%clk 0:01:50]} 37. Qxg6+ {[%clk 0:01:07]}  Kxg6 {[%clk 0:01:51]} 38. Nf4+ {[%clk 0:01:07]}  Kh6 {[%clk 0:01:52]} 39. Nxh5 {[%clk 0:01:08]}  Kxh5 {[%clk 0:01:53]} 40. Rg3 {[%clk 0:01:05]}  Nc6 {[%clk 0:01:47]} 41. Rg7 {[%clk 0:01:04]}  a6 {[%clk 0:01:46]} 42. Rb7 {[%clk 0:01:03]}  b5 {[%clk 0:01:45]} 43. Rb6 {[%clk 0:01:03]}  Na5 {[%clk 0:01:45]} 44. b3 {[%clk 0:01:01]}  Kg5 {[%clk 0:01:45]} 45. Rxa6 {[%clk 0:01:01]}  Nb7 {[%clk 0:01:45]} 46. Rb6 {[%clk 0:01:01]}  Nd8 {[%clk 0:01:45]} 47. Rxb5 {[%clk 0:01:00]}  Kf4 {[%clk 0:01:46]} 48. a4 {[%clk 0:00:57]}  Ke4 {[%clk 0:01:46]} 49. a5 {[%clk 0:00:57]}  Kd3 {[%clk 0:01:46]} 50. a6 {[%clk 0:00:58]}  Nc6 {[%clk 0:01:47]} 51. Rc5 {[%clk 0:00:54]}  Na7 {[%clk 0:01:47]} 52. b4 {[%clk 0:00:53]}  Kd2 {[%clk 0:01:46]} 53. Kf3 {[%clk 0:00:52]}  Kd3 {[%clk 0:01:47]} 54. Kf4 {[%clk 0:00:53]}  Kc2 {[%clk 0:01:46]} 55. Ke5 {[%clk 0:00:53]}  Kb3 {[%clk 0:01:47]} 56. b5 {[%clk 0:00:53]}  Ka4 {[%clk 0:01:46]} 57. b6 {[%clk 0:00:53]}  Nb5 {[%clk 0:01:44]} 58. a7 {[%clk 0:00:52]} 1-0


[Site "https://www.chess.com"]